Cogmind - Beta 15 @@@ ROGUE MODE // 2025.10.20 @ 18:23:27 Player: glitchbuggaming Result: Self-destructed Performance ------------- Evolutions (4) 2000 Regions Visited (6) 1200 Robots Destroyed (57) 285 Value Destroyed (2053) 2053 Prototype IDs (0) 0 Alien Tech Used (0) 0 Bonus (109) 109 TOTAL SCORE: 5647 Bonus ------- Follower Combat Kills 109 Cogmind --------- Core Integrity 660/850 Matter 188/300 Energy 100/100 System Corruption 15% Temperature Cool (0) Movement Walking (190) Ox1 Location -6/Factory Parts ------- > --- POWER (2) -------- (None) > --- PROPULSION (4) --- Armored Leg > --- UTILITY (5) ------ Advanced Heat Sink Medium Storage Unit Layered Light Armor Plating > --- WEAPON (4) ------- Gauss Rifle > --- INVENTORY (10) --- Light Treads Weight Redist. System Improved Light Armor Plating Shock Rifle Gauss Cannon Magnetic Acceleration Cannon Peak State ------------ > --- POWER ------------ Angular Momentum Engine Angular Momentum Engine > --- PROPULSION ------- Aluminum Leg Aluminum Leg Carbon-fiber Leg > --- UTILITY ---------- Advanced Heat Sink Medium Storage Unit Layered Light Armor Plating Authchip [Processor] Recalibrator > --- WEAPON ----------- Plasma Cannon Phase Cannon Gauss Cannon Magnetic Acceleration Cannon > --- INVENTORY -------- Light Treads Light Treads Weight Redist. System Improved Sensor Array Improved Light Armor Plating Minigun Gauss Rifle [Rating: 52] Favorites ----------- Power Angular Momentum Engine Engine Angular Momentum Engine Power Core Light Nuclear Core Propulsion Aluminum Leg Treads Light Treads Leg Aluminum Leg Wheel Compact Wheel Hover Unit Improved Hover Unit Flight Unit Cesium-ion Thruster Utility Medium Storage Unit Device Shield Generator Storage Medium Storage Unit Hackware Authchip [Processor] Protection Layered Light Armor Plating Weapon Minigun Energy Gun Medium Laser Energy Cannon Heavy Particle Cannon Ballistic Gun Minigun Ballistic Cannon Gauss Cannon Launcher Mini Grenade Launcher Build | -11 -10 -9 -9 -8 -7 -6 ------- Run | Yrd Mat Mat Min Mat Fac Fac Slots Evolved 8 | . . 2 . 2 2 2 Power 1 | . . . . 1 . . Propulsion 2 | . . . . 1 . 1 Utility 3 | . . 1 . . 2 . Weapon 2 | . . 1 . . . 1 Parts Attached 64 | 5 6 9 1 18 12 13 Power 12 | 1 1 2 . 4 2 2 Engine 7 | 1 . 2 . 2 . 2 Core 5 | . 1 . . 2 2 . Reactor . | . . . . . . . Propulsion 17 | 2 1 2 . 7 4 1 Treads 3 | . . . . 3 . . Leg 8 | 2 1 . . 1 3 1 Wheel 2 | . . 2 . . . . Hover 2 | . . . . 1 1 . Flight 2 | . . . . 2 . . Utility 15 | . 3 1 . 2 4 5 Device 8 | . . 1 . 2 1 4 Storage 3 | . 3 . . . . . Processor . | . . . . . . . Hackware 1 | . . . . . 1 . Protection 3 | . . . . . 2 1 Artifact . | . . . . . . . Weapon 20 | 2 1 4 1 5 2 5 Energy Gun 4 | 2 . 1 . . . 1 Energy Cannon 4 | . . 1 . 1 . 2 Ballistic Gun 5 | . . 1 1 2 1 . Ballistic Cannon 3 | . . . . . 1 2 Launcher 4 | . 1 1 . 2 . . Special Weapon . | . . . . . . . Impact Weapon . | . . . . . . . Slashing Weapon . | . . . . . . . Piercing Weapon . | . . . . . . . Special Melee Weapon . | . . . . . . . Unidentified Prototypes . | . . . . . . . Parts Lost 30 | . 1 7 . 1 6 15 Power 6 | . 1 1 . 1 1 2 Propulsion 8 | . . 3 . . 1 4 Utility 6 | . . . . . 1 5 Weapon 10 | . . 3 . . 3 4 Highest Loss Streak 10 | . 1 7 . 1 3 10 To Critical Strikes . | . . . . . . . Average Backups 5 | . 2 3 4 5 5 6 Power . | . . 1 3 . . . Propulsion 1 | . . . . . 1 2 Utility 2 | . . 1 1 2 3 2 Weapon 1 | . . . . 1 . 1 Tool/Special . | . . . . . . . Unused Backups 7 | . 1 . . 4 . 2 Power 1 | . . . . 1 . . Propulsion 1 | . 1 . . . . . Utility 1 | . . . . . . 1 Weapon 4 | . . . . 3 . 1 Tool/Special . | . . . . . . . Average Slot Usage (%) 83 | . 85 83 98 87 71 85 Engine 8 | . 10 10 11 7 . 11 Core 3 | . 1 . . 6 7 1 Treads 2 | . . . . 5 3 1 Leg 12 | . 28 17 . 5 5 18 Wheel 1 | . . 2 22 1 . . Flight 2 | . . . . 4 6 . Device 12 | . . 1 11 16 15 15 Storage 11 | . 16 22 22 10 7 6 Hackware 1 | . . . . . 3 3 Protection 1 | . . . . . 3 3 Energy Gun 2 | . 19 4 11 . . . Energy Cannon 5 | . . . 11 9 3 7 Ballistic Gun 5 | . . 6 9 5 7 4 Ballistic Cannon 2 | . . . . . . 9 Launcher 7 | . 8 16 . 11 4 . Peak Build Rating 52 | 5 8 11 13 28 38 52 Average Rating 24 | 2 6 8 12 24 24 44 On Entrance 13 | . 5 7 11 13 24 35 Naked Turns . | . . . . . . . Heaviest Build 72 | 7 20 26 27 37 50 72 Greatest Support 41 | 20 20 26 26 20 41 41 Greatest Overweight (x) 8 | . . 7 1 6 8 3 Average Overweight (x) 1 | . . . . 1 1 1 Largest Inventory Capacity 10 | 5 10 10 10 10 10 10 Average Capacity 9 | 5 8 10 10 10 10 10 Most Carried 10 | 2 4 6 8 10 8 10 Average Carried 5 | . 2 3 4 5 5 6 Final Capacity 10 | 5 10 10 10 10 10 10 Final Carried 8 | 1 4 5 8 7 6 6 Class Distribution -------------------- 30% | Bomber 20% | Mutant 17% | Tank 11% | Scavenger-Tank 10% | Scavenger-Mutant 7% | Gunner Dominant Class ---------------- Mutant | -10/Materials Bomber | -9/Materials Scavenger-Tank | -9/Mines Bomber | -8/Materials Scavenger-Mutant | -7/Factory Tank | -6/Factory Resources | -11 -10 -9 -9 -8 -7 -6 ----------- Run | Yrd Mat Mat Min Mat Fac Fac Matter Collected 1906 | 229 161 348 38 350 238 542 Remotely . | . . . . . . . Salvage Created 1635 | . 161 458 59 426 243 288 Parts 107 | . 11 30 6 25 17 18 Haulers Intercepted . | . . . . . . . Recyclers Shooed 1 | . . . . . 1 . Parts Field Recycled . | . . . . . . . Retrieved Matter . | . . . . . . . Parts Self-Destructed . | . . . . . . . Prevented . | . . . . . . . Kills | -11 -10 -9 -9 -8 -7 -6 ------- Run | Yrd Mat Mat Min Mat Fac Fac Combat Hostiles Destroyed 47 | . 6 11 4 10 6 10 Guns 17 | . 1 8 4 1 3 . Cannons 13 | . . . . 2 2 9 AOE 16 | . 5 3 . 7 1 . Classes Destroyed 12 | . 1 6 . 2 2 1 Worker 2 | . . . . . 1 1 Builder 3 | . . . . 1 1 1 Tunneler 1 | . . 1 . . . . Mechanic 2 | . . 1 . 1 . . Watcher 2 | . . 1 . 1 . . Swarmer 9 | . . 2 4 . . 3 Grunt 21 | . 6 6 . 6 3 . Brawler 3 | . . 1 . 2 . . Duelist 1 | . . . . 1 . . Sentry 7 | . . 2 . 1 2 2 Hunter 1 | . . . . . 1 . Programmer 5 | . . . . . . 5 Best Kill Streak 7 | . 4 7 4 4 3 4 Combat Bots Only 6 | . 4 6 4 3 3 3 Max Kills in Single Turn 3 | . 3 2 1 2 2 2 Gunslinging . | . . . . . . . Exploded 3 | . 3 1 . 1 1 . Melee . | . . . . . . . Uniques/NPCs Destroyed . | . . . . . . . Combat | -11 -10 -9 -9 -8 -7 -6 -------- Run | Yrd Mat Mat Min Mat Fac Fac Hostile Shots Fired 603 | . 14 98 29 38 139 285 Missed 187 | . 3 27 10 13 57 77 Hits 416 | . 11 71 19 25 82 208 Projectile 416 | . 11 71 19 25 82 208 AOE 1 | . . . . . . 1 Critical Strikes 7 | . . 2 . 3 . 2 Part Disruptions 3 | . . . . . . 3 Damage Taken 4535 | . 128 913 101 349 941 2103 Core 758 | . 23 214 38 53 240 190 Absorbed by Shields 733 | . . 41 41 123 53 475 Regen/Repaired (Parts) 47 | . . 47 . . . . Core Remaining (%) 76 | 100 90 . 37 90 65 . Volleys Fired 146 | . 8 36 8 23 32 39 Largest 4 | . 2 3 3 3 3 4 Hottest 249 | . 80 83 128 133 141 249 Shots Fired 302 | . 12 57 24 59 47 103 Gun 119 | . 8 36 16 22 20 17 Cannon 128 | . . . 8 23 11 86 Launcher 55 | . 4 21 . 14 16 . Special . | . . . . . . . Kinetic 141 | . . 26 8 22 20 65 Thermal 102 | . 8 10 16 23 11 34 Explosive 41 | . 4 11 . 13 13 . Electromagnetic 18 | . . 10 . 1 3 4 Robot Hit Streak 14 | . 5 14 2 8 6 6 Robot Miss Streak 7 | . 1 4 3 2 3 7 Penetration Max 1 | . . . . . 1 . Secondary Targets . | . . . . . . . Shots Hit Robots 175 | . 7 37 6 33 32 60 Core Hits 111 | . 11 29 6 26 17 22 Critical Kills 1 | . . . . . . 1 Critical Parts Destroyed . | . . . . . . . Critical Strikes 3 | . . . . . . 3 Meltdown 1 | . . . . . . 1 Blast 2 | . . . . . . 2 Melee Attacks . | . . . . . . . Impact . | . . . . . . . Slashing . | . . . . . . . Piercing . | . . . . . . . Sneak Attacks . | . . . . . . . Combat Hostiles . | . . . . . . . Follow-up Attacks . | . . . . . . . Damage Inflicted 5659 | . 410 1217 118 1263 903 1748 Guns 1152 | . 62 354 76 251 241 168 Cannons 2071 | . . . 42 263 200 1566 Explosions 2422 | . 348 863 . 749 462 . Melee . | . . . . . . . Ramming 14 | . . . . . . 14 Kinetic 1865 | . . 275 25 251 241 1073 Thermal 1620 | . 62 246 93 263 321 635 Explosive 1763 | . 348 394 . 731 290 . Electromagnetic 397 | . . 302 . 18 51 26 Impact . | . . . . . . . Slashing . | . . . . . . . Piercing . | . . . . . . . Highest Corruption 15 | . . . . . . 15 Average Corruption 2 | . . . . . . 2 Corruption Purged . | . . . . . . . Corruption Blocked . | . . . . . . . Effects 7 | . . . . . . 7 Matter Fused 3 | . . . . . . 3 Heat Flow Errors 1 | . . . . . . 1 Energy Discharges 1 | . . . . . . 1 Data Loss (minor) 1 | . . . . . . 1 Weapon Failures 1 | . . . . . . 1 Overload Shots . | . . . . . . . Overflow Damage 107 | . . . . 20 67 20 Projectiles 20 | . . . . . . 20 Explosions 87 | . . . . 20 67 . Melee . | . . . . . . . Knockbacks 5 | . . . . . . 5 Impact . | . . . . . . . Kinetic 5 | . . . . . . 5 Secondary . | . . . . . . . Self-Inflicted Damage 351 | . . 94 . 83 174 . Shots 15 | . . 5 . 2 8 . Rammed . | . . . . . . . Targets Rammed 1 | . . . . . . 1 Kicked 1 | . . . . . . 1 Crushed . | . . . . . . . Highest Temperature 571 | . 81 60 392 226 70 571 Average Temperature 120 | . 38 21 208 75 23 189 Received Heat Transfer 922 | . 72 385 . 182 194 89 Effects 10 | . . . 1 . . 9 Shutdowns 3 | . . . . . . 3 Energy Bleed 1 | . . . . . . 1 Interference 2 | . . . . . . 2 Matter Decay 1 | . . . . . . 1 Short Circuit 3 | . . . 1 . . 2 Siege Activations . | . . . . . . . Martial Activations . | . . . . . . . Shielding Activations . | . . . . . . . Robots Disrupted . | . . . . . . . Combat Hostiles . | . . . . . . . Robots Corrupted . | . . . . . . . Combat Hostiles . | . . . . . . . Parts Fried . | . . . . . . . Impact Corruptions . | . . . . . . . Robots Melted 1 | . . . . . . 1 Combat Hostiles 1 | . . . . . . 1 Parts Melted 1 | . . . . . . 1 Heat Transferred 2545 | . 185 375 199 444 396 946 Parts Sabotaged . | . . . . . . . Parts Stolen . | . . . . . . . Parts Stripped . | . . . . . . . Power Chain Reactions 1 | . . 1 . . . . Alert | -11 -10 -9 -9 -8 -7 -6 ------- Run | Yrd Mat Mat Min Mat Fac Fac Maximum Alert Level 1 | . . . . 1 . . Low Security (%) 90 | 100 100 100 100 52 100 100 Level 1 9 | . . . . 47 . . Level 2 . | . . . . . . . Level 3 . | . . . . . . . Level 4 . | . . . . . . . Level 5 . | . . . . . . . High Security . | . . . . . . . Max Security . | . . . . . . . Peak Influence 261 | . 118 185 123 261 134 58 Initial 93 | . . 28 53 20 93 . Average 65 | . 55 55 84 177 44 14 Influence Increases 1805 | . 148 427 90 541 261 338 Destroy 0b10 Robot/C 1000 | . 120 220 80 260 120 200 Destroy 0b10 Robot/NC 50 | . . 15 . 15 10 10 Destroy Leader 234 | . 10 52 10 62 40 60 Allied During Kill 9 | . . . . 9 . . Successful Hack 9 | . . 4 . . . 5 Disable Machine 135 | . . 15 . 75 30 15 Destroy Structure 293 | . 18 76 . 120 61 18 Partial Spotted 15 | . . . . . . 15 Lose Combat Pursuer 60 | . . 45 . . . 15 Influence Decreases 1801 | . 80 358 174 389 466 334 Entered New Map 269 | . . 40 84 33 112 . Time Decay 1258 | . 70 248 90 346 294 210 Lost Part 274 | . 10 70 . 10 60 124 Squads Dispatched 11 | . . 2 . 1 2 6 Investigation 1 | . . . . . 1 . Extermination 3 | . . . . . 1 2 Reinforcement 7 | . . 2 . 1 . 4 Assault . | . . . . . . . Garrison . | . . . . . . . Intercept . | . . . . . . . Searches Triggered . | . . . . . . . Construction Impeded 1 | . . . . . . 1 Haulers Reinforced 1 | . . . . . . 1 Active Scanning Responses . | . . . . . . . Cargo Convoy Interrupts 1 | . . . . . . 1 Stealth | -11 -10 -9 -9 -8 -7 -6 --------- Run | Yrd Mat Mat Min Mat Fac Fac Distress Signals 6 | . . 2 . 3 1 . Communications Jammed . | . . . . . . . Distress Signals . | . . . . . . . Times Spotted 77 | . 6 19 4 19 7 22 Peak Tracking Total 11 | . 4 8 4 4 3 11 Tactical Retreats 2 | . . 1 . . . 1 Traps | -11 -10 -9 -9 -8 -7 -6 ------- Run | Yrd Mat Mat Min Mat Fac Fac Traps Triggered 1 | . . . . . . 1 Indirectly . | . . . . . . . Trap Hack Attempts . | . . . . . . . Triggered . | . . . . . . . Disarmed . | . . . . . . . Reprogrammed . | . . . . . . . Reused . | . . . . . . . Traps Extracted . | . . . . . . . Installed . | . . . . . . . Triggered . | . . . . . . . Machines | -11 -10 -9 -9 -8 -7 -6 ---------- Run | Yrd Mat Mat Min Mat Fac Fac Machines Disabled 9 | . . 1 . 5 2 1 Max in Single Turn 1 | . . 1 . 1 1 1 Machines Repaired . | . . . . . . . Machines Dismantled . | . . . . . . . Machines Sabotaged . | . . . . . . . Overloaded Fab Kills . | . . . . . . . Hacking | -11 -10 -9 -9 -8 -7 -6 --------- Run | Yrd Mat Mat Min Mat Fac Fac Machines Accessed 6 | . 2 2 . . 1 1 Terminals 3 | . 2 . . . . 1 Fabricators 1 | . . . . . 1 . Repair Stations 1 | . . 1 . . . . Recycling Units . | . . . . . . . Scanalyzers 1 | . . 1 . . . . Garrison Access . | . . . . . . . Total Hacks 15 | . 4 5 . . 3 3 Successful 10 | . 2 5 . . 2 1 Failed 5 | . 2 . . . 1 2 Catastrophic . | . . . . . . . Database Lockouts . | . . . . . . . Manual . | . . . . . . . Terminals 7 | . 4 . . . . 3 Fabricators 3 | . . . . . 3 . Repair Stations 2 | . . 2 . . . . Recycling Units . | . . . . . . . Scanalyzers 3 | . . 3 . . . . Garrison Access . | . . . . . . . Terminal Hacks 3 | . 2 . . . . 1 Open DSF 1 | . . . . . . 1 Emergency Access Points 1 | . 1 . . . . . Locate Traps 1 | . 1 . . . . . Fabricator Hacks 2 | . . . . . 2 . Load Schematic 1 | . . . . . 1 . Build 1 | . . . . . 1 . Repair Station Hacks 2 | . . 2 . . . . Scan Component 1 | . . 1 . . . . Repair 1 | . . 1 . . . . Recycling Unit Hacks . | . . . . . . . Scanalyzer 3 | . . 3 . . . . Insert Component 2 | . . 2 . . . . Analyze 1 | . . 1 . . . . Garrison Access Hacks . | . . . . . . . Unauthorized Hacks . | . . . . . . . Terminals . | . . . . . . . Fabricators . | . . . . . . . Repair Stations . | . . . . . . . Recycling Units . | . . . . . . . Scanalyzers . | . . . . . . . Garrison Access . | . . . . . . . Data Cores Recovered . | . . . . . . . Used . | . . . . . . . Hacking Detections 3 | . . 1 . . 1 1 Full Trace Events 1 | . . . . . 1 . Feedback Events . | . . . . . . . Feedback Blocked . | . . . . . . . Robot Schematics Acquired . | . . . . . . . Robots Built . | . . . . . . . Authchips . | . . . . . . . Time . | . . . . . . . Total Robot Build Rating . | . . . . . . . Part Schematics Acquired 1 | . . 1 . . . . Parts Built . | . . . . . . . Authchips . | . . . . . . . Time 51 | . . . . . 51 . Total Part Build Rating . | . . . . . . . Parts Repaired 1 | . . 1 . . . . Time 26 | . . 26 . . . . Parts Recycled . | . . . . . . . Recycled Matter . | . . . . . . . Retrieved Matter . | . . . . . . . Retrieved Components . | . . . . . . . Parts Scanalyzed 1 | . . 1 . . . . Part Schematics Acquired 1 | . . 1 . . . . Parts Damaged . | . . . . . . . Bothacking | -11 -10 -9 -9 -8 -7 -6 ------------ Run | Yrd Mat Mat Min Mat Fac Fac Used RIF Installer . | . . . . . . . Robots Hacked . | . . . . . . . Non-combat . | . . . . . . . Combat . | . . . . . . . Robot Hacks Applied . | . . . . . . . Relay Couplers Released . | . . . . . . . Fabnet Peak Effective % . | . . . . . . . Robots Rewired . | . . . . . . . Allies Hacked . | . . . . . . . Hacks Repelled . | . . . . . . . Allies | -11 -10 -9 -9 -8 -7 -6 -------- Run | Yrd Mat Mat Min Mat Fac Fac Total Allies 1 | . . . 1 . . . Largest Group 1 | . . . 1 1 . . Highest-Rated Group 31 | . . . 31 31 . . Highest-Rated Ally 31 | . . . 31 31 . . Total Orders . | . . . . . . . Ally Attacks 18 | . . . . 18 . . Total Damage 189 | . . . . 189 . . Kills 3 | . . . . 3 . . Allies Corrupted . | . . . . . . . Allies Melted 1 | . . . . . 1 . Intel | -11 -10 -9 -9 -8 -7 -6 ------- Run | Yrd Mat Mat Min Mat Fac Fac Active Infowar (turns) 100 | . . . . . . 100 Sensors 100 | . . . . . . 100 Robot Analysis Total . | . . . . . . . Derelict Logs Recovered . | . . . . . . . Drone Launches . | . . . . . . . Drone Recoveries . | . . . . . . . Exploration | -11 -10 -9 -9 -8 -7 -6 ------------- Run | Yrd Mat Mat Min Mat Fac Fac Turns Passed 4116 | 118 237 791 189 801 836 1144 Spaces Moved 2040 | 94 168 367 145 372 451 443 Core 207 | 6 . 3 . . 198 . Treads 119 | . . . . 31 64 24 Legs 1198 | 88 168 287 . 107 129 419 Wheels 283 | . . 77 145 61 . . Hover 28 | . . . . 28 . . Flight 205 | . . . . 145 60 . Fastest Speed 50 | 50 120 90 90 112 100 190 Average Speed 167 | 115 120 170 110 169 155 221 Slowest Speed 545 | 120 120 400 115 545 450 330 Overloaded Moves . | . . . . . . . Propulsion Burnouts . | . . . . . . . Robots Hopped . | . . . . . . . Potential Cave-ins . | . . . . . . . Cave-ins Triggered . | . . . . . . . Exploration Rate (%) 23 | 4 30 41 34 35 9 12 Regions Visited 6 Branch Regions 1 Pre-discovered Areas . | . . . . . . . Known Exits Taken . | . . . . . . . Unknown Exits Taken 6 | 1 1 1 1 1 1 . Scrap Searched 1 | . . . 1 . . . Spaces Dug . | . . . . . . . Terrain Destroyed 353 | . 27 73 . 160 73 20 Melee . | . . . . . . . Projectile 30 | . . . . 8 2 20 AOE 323 | . 27 73 . 152 71 . Terrain Rammed . | . . . . . . . Walls Destroyed . | . . . . . . . Machines Disabled . | . . . . . . . Actions | -11 -10 -9 -9 -8 -7 -6 --------- Run | Yrd Mat Mat Min Mat Fac Fac Total 2507 | 102 190 482 157 499 542 535 Wait 136 | . . 55 . 40 28 13 Move 2034 | 93 167 366 144 371 450 443 Hop . | . . . . . . . Pick Up 70 | 4 7 12 4 20 10 13 Fast Attach 2 | 2 . . . . . . Attach 49 | 3 3 9 1 8 15 10 Detach 10 | . . . . 3 4 3 Swap 29 | . 4 2 . 14 2 7 Drop 30 | . 1 2 . 20 1 6 Fire 146 | . 8 36 8 23 32 39 Melee . | . . . . . . . Ram . | . . . . . . . Kick 1 | . . . . . . 1 Crush . | . . . . . . . Escape Stasis . | . . . . . . . Rewire . | . . . . . . . Trap . | . . . . . . . Miscellaneous . | . . . . . . . Route ------- -11/Scrapyard -10/Materials (discovered 3 exits: *Mat / [*Min] / [*Sub]) -9/Materials (discovered 2 exits: [*Mat] / [*Min]) -9/Mines -8/Materials -7/Factory -6/Factory History --------- Turn | Location | Event 7 | -11/Scrapyard | Discovered new exit (range 15) 119 | -11/Scrapyard | Entered Materials 209 | -10/Materials | Discovered new exit (range 14) 268 | -10/Materials | Discovered new exit (range 16) 302 | -10/Materials | Discovered new exit (range 8) 304 | -10/Materials | Build established: Mutant 356 | -10/Materials | Entered another Materials area 356 | -9/Materials | Evolved 2 slots: Utility x1, Weapon x1 420 | -9/Materials | Repaired Grenade Launcher 972 | -9/Materials | Discovered new exit (range 3) 1021 | -9/Materials | Core integrity fell below 50% 1033 | -9/Materials | Lost 7 parts (1p3n3w) 1134 | -9/Materials | Discovered new exit (range 8) 1147 | -9/Materials | Entered Mines 1235 | -9/Mines | Assembled infested the area 1240 | -9/Mines | Assisted by a Guerilla fighting off Assembled 1305 | -9/Mines | Discovered new exit (range 10) 1325 | -9/Mines | Received a Mining Laser from a helpful Derelict 1336 | -9/Mines | Entered Materials 1336 | -8/Materials | Accompanied by 1 ally 1336 | -8/Materials | Evolved 2 slots: Power x1, Propulsion x1 1658 | -8/Materials | Met 7R-MNS 1694 | -8/Materials | Build established: Bomber 2128 | -8/Materials | Discovered new exit (range 5) 2137 | -8/Materials | Entered Factory 2137 | -7/Factory | Evolved 2 slots: Utility x2 2138 | -7/Factory | Caught up to 7R-MNS 2388 | -7/Factory | Lost 3 parts (1n2w) 2862 | -7/Factory | Build established: Scavenger-Mutant 2949 | -7/Factory | Discovered new exit (range 4) 2973 | -7/Factory | Entered another Factory area 2973 | -6/Factory | Evolved 2 slots: Propulsion x1, Weapon x1 2974 | -6/Factory | Caught up to 7R-MNS 3185 | -6/Factory | Build established: Scavenger-Tank 3692 | -6/Factory | Build established: Tank 4048 | -6/Factory | Cargo convoy interrupted 4074 | -6/Factory | System corruption reached 10% 4117 | -6/Factory | Self-destructed Last Messages --------------- 04090_ Slug penetrates Wall. 04095_ System corrupted: Matter fused (-7). 04095_ Carbon-fiber Leg destroyed. 04096_ Slug penetrates Wall. 04097_ P-60 Hacker destroyed. 04104_ Slug penetrates Wall. 04105_ Wall collapses. 04107_ Penetrated by Slug. 04108_ Slug penetrates Wall. 04110_ Shield Generator destroyed. 04111_ Slug penetrates Wall. 04113_ The unstable cave ceiling collapses. 04114_ Slug penetrates Earth. 04114_ Penetrated by Slug. 04114_ Angular Momentum Engine destroyed. 04115_ Acquired 24 matter. 04117_ Penetrated by Slug. 04117_ Hvy. Flak Cannon destroyed. 04117_ Phase Cannon destroyed. [Achievement: 5k Club] Map ----- +----------------------------------------------------+ | ?????????????????????????????????????????????????? | | ?????????????????????????????????????????????????? | | ?????????????????????????????????????????????????? | | ?????????????????????????????????????????????????? | | ?????????????????????????????????????????????????? | | ?????????????????????????????????????????????????? | | ?????????????????????????????????????????????????? | | ?????????????????????????????????????????????????? | | ?????????????????????????????????????????????????? | | ??????????????????????????????????? ?????????? | | ????????????????????????????????? ???????? | | ????????????????????????????????# ????? | | ????????????????????????????????+ #??? | | ????????????????????????????????# #??? | | ??????????????????????????????### #??? | | ??????????????????????????????? #### | | ???????????????????????????????# % | | ???????????????????????????????# | | ???????????????????????????????? | | ????????????????????????###?????? | | ???????????????????????? #??????# ? | | ????????????????????????#p#??????# " ??? | | ????????????????????????# #?????## %" ?????? | | ????????????????????????# #?????# " #???????? | | ????????????????????????# #?????# #???????? | | ???????????????????????##@######## =! ###?????? | | ???????????????????????# ## # | / #? | | ???????????????????????# %hh " ########## #? | | ???????????????????????# ###!%!# # """" #????? | | ????????????????????###########| u # ""F" #????? | | ????????????????????# ! # # "" #????? | | ????????????????????# # # #????? | | ????????????????????# # + #????? | | ????????????????????# *# # """ #????? | | ????????????????????######""+## # """ #????? | | ????????????????????????# # """ #????? | | ????????????????????????# # #????? | | ????????????????????????# #######/##????? | | ???????????????????###### #???????#?????? | | ???????????????????# #?????????????? | | ???????????????????# #?????????????? | | ?????????????????### #?????????????? | | ?????????????? #?????????????? | | ???????????????#####+### ####### ?????? | | ???????????????????????# ^^ ????? | | ???????????? ??????????# ^????? | | ????????????%??????????+ "" """" ????? | | ???????????? ????????? ### """""" ?????? | | ???????????# ???????? ??# """""""??????????? | | ?????? ????# ????????????# """"""" ??????? | +----------------------------------------------------+ Best States ------------- Heat Dissipation 56 Energy Generation 31 Energy Capacity 500 Matter Stores 400 Matter Capacity 400 Sight Range 16 Robot Scan Range 15 Terrain Scan Density 10 Additional Mass Support 6 Armor Coverage 225 Resistance: KI 30 Evasion (%) 55 Recoil Reduction 2 Authchip Count 1 Item Schematics ----------------- Ion Engine | -9/Materials | Scanalyzed Robot Schematics ------------------ None Fabricated ------------ Nothing Repaired ---------- Grenade Launcher | 21% | -9/Materials Alien Tech Used ----------------- None Achievements -------------- 5k Club Made in Tau Ceti IV Part-time Mechanic Serviceable Loadout System Compromised Universal Adapter Challenges ------------ None Game ------ Seed ElectrostormDirectedExpander Manual? 0 Play Time 01:03:09 Cumulative 5.8 hours Start 2025.10.15 @ 00:27:49 End 2025.10.20 @ 18:23:27 Sessions 1 Manual Loads 0 Difficulty Rogue Special Mode None Game No. 14 Rogue 14 Adventurer 0 Explorer 0 Win Type - Total 0 Types 0/0/0/0/0/0/0/0/0/0 Lore% 5 Gallery% 8 Achievement% 12 Wizard Run 0 Options --------- Layout 1 ASCII 0 Keyboard 0 Movement Mouse Keybinds 0 Fullscreen 1 Font 24/Smallcaps Map View 50x35 Zoom Use 0% Tactical HUD 1 Map Filters NONE Filters NONE Steam 1 RUN: a2f1f81f-bf5e-49e2-be38-eebbcb98e162